bitfinex/quotes_SOLUSD_20260309
["timestamp","ask_amount","ask_price","bid_price","bid_amount"]
[1773064572726,3.00115891,85.319,85.29,11.32006912]
[1773064572916,3.00115891,85.319,85.281,0.14216157]
[1773064573427,3.00115891,85.319,85.29,11.32006912]
[1773064573834,3.00115891,85.319,85.281,0.28432314]
[1773064574033,3.00115891,85.309,85.26,11.32006912]
[1773064574226,3.00115891,85.289,85.191,46.95287528]
[1773064574541,14.32122803,85.27,85.225,0.10755872]
[1773064574745,11.32006912,85.32,85.186,93.9118351]
[1773064574746,3.00115891,85.259,85.22,23.05439882]
[1773064575047,3.00115891,85.259,85.23,11.32006912]
[1773064575235,3.00115891,85.259,85.22,23.05439882]
[1773064575437,3.00115891,85.259,85.22,11.32006912]
[1773064575640,3.00115891,85.259,85.21,29.33913256]
[1773064575641,3.00115891,85.249,85.21,11.32006912]
[1773064575836,3.00115891,85.249,85.142,46.97980275]
[1773064575837,3.00115891,85.247,85.22,11.32006912]
[1773064576036,3.00115891,85.249,85.211,11.73557404]
[1773064576241,11.32006912,85.25,85.212,0.14216157]
[1773064576442,3.00115891,85.249,85.206,11.73620192]
[1773064576635,3.00115891,85.249,85.21,11.32006912]
[1773064576830,3.00115891,85.249,85.22,11.32006912]
[1773064577037,3.00115891,85.258,85.22,11.32006912]
[1773064577349,3.00115891,85.249,85.21,11.32006912]
[1773064577543,3.00115891,85.239,85.188,0.12347251]
[1773064577746,3.00115891,85.227,85.191,11.73832916]
[1773064578048,3.00115891,85.227,85.19,11.32006912]
[1773064578271,3.00115891,85.227,85.152,58.71852686]
[1773064578272,3.00115891,85.209,85.166,0.12347251]
[1773064578554,3.00115891,85.227,85.19,11.32006912]
[1773064579129,41.06631622,85.228,85.168,11.74137414]
[1773064579130,3.00115891,85.209,85.17,11.32006912]
[1773064579354,3.00115891,85.209,85.18,11.32006912]
[1773064579848,11.73598723,85.208,85.18,11.32006912]
[1773064580449,3.00115891,85.22,85.19,11.32006912]
[1773064580940,3.00115891,85.22,85.171,11.74108558]
[1773064580941,11.32006912,85.21,85.171,11.74108558]
[1773064581139,3.00115891,85.209,85.172,0.28432314]
[1773064581347,3.00115891,85.209,85.18,11.32006912]
[1773064582046,3.00115891,85.207,85.18,11.32006912]
[1773064582248,0.28432314,85.243,85.172,0.28432314]
[1773064582249,58.63383171,85.275,85.201,2.9702687]
[1773064582447,11.32006912,85.25,85.22,11.32006912]
[1773064582649,11.32006912,85.26,85.22,11.32006912]
[1773064582829,41.0436822,85.275,85.23,11.32006912]
[1773064582830,11.32006912,85.27,85.23,11.32006912]
[1773064583435,11.72676634,85.275,85.25,11.32006912]
[1773064583734,41.0436822,85.275,85.24,11.32006912]
[1773064584130,41.0436822,85.275,85.231,11.73276267]
[1773064584353,2.90567088,85.269,85.23,11.32006912]
[1773064584651,2.90567088,85.269,85.24,11.32006912]
[1773064584951,2.90567088,85.269,85.23,11.32006912]
[1773064585531,2.90567088,85.259,85.22,23.05440378]
[1773064585736,2.90567088,85.259,85.23,11.32006912]
[1773064585947,11.7291046,85.258,85.231,11.73282021]
[1773064586248,11.7291046,85.258,85.23,11.32006912]
[1773064586433,2.90567088,85.257,85.23,11.32006912]
[1773064587356,2.90567088,85.257,85.22,11.32006912]
[1773064587738,11.72848629,85.263,85.23,11.32006912]
[1773064588034,2.90567088,85.262,85.23,11.32006912]
[1773064588258,11.72869189,85.261,85.24,11.32006912]
[1773064588454,11.7271789,85.272,85.24,11.32006912]
[1773064588635,41.04512617,85.272,85.24,11.32006912]
[1773064588835,2.90567088,85.271,85.24,11.32006912]
[1773064589044,11.72662456,85.277,85.25,11.32006912]
[1773064589456,11.72374174,85.297,85.27,11.32006912]
[1773064589661,11.72209262,85.309,85.28,11.32006912]
[1773064590467,2.90567088,85.308,85.27,11.32006912]
[1773064590756,2.90567088,85.308,85.28,11.32006912]
[1773064591255,11.32006912,85.3,85.235,0.28432314]
[1773064591439,2.90567088,85.289,85.25,11.32006912]
[1773064591645,2.90567088,85.279,85.24,11.32006912]
[1773064591839,2.90567088,85.279,85.229,11.73309554]
[1773064591840,2.90567088,85.279,85.25,11.32006912]
[1773064592061,2.90567088,85.293,85.253,2.9702687]
[1773064592237,11.72264228,85.305,85.28,11.32006912]
[1773064592435,3.69383402,85.326,85.27,11.72740427]
[1773064592436,11.72113085,85.316,85.271,2.9702687]
[1773064592651,11.72113085,85.316,85.29,11.32006912]
[1773064592858,41.02395798,85.316,85.29,11.32006912]
[1773064593160,11.71934512,85.329,85.3,11.32006912]
[1773064593357,3.09009688,85.328,85.29,11.32006912]
[1773064594551,3.09009688,85.326,85.29,11.32006912]
[1773064594734,3.09009688,85.319,85.29,11.32006912]
[1773064594934,3.09009688,85.319,85.3,11.32006912]
[1773064595142,3.09009688,85.319,85.277,41.04268541]
[1773064595143,11.71907044,85.331,85.31,11.32006912]
[1773064596049,11.71907044,85.331,85.29,11.32006912]
[1773064596050,11.32006912,85.33,85.29,11.32006912]
[1773064596245,3.09009688,85.329,85.29,11.32006912]
[1773064596764,3.09009688,85.327,85.29,11.32006912]
[1773064597660,3.09009688,85.319,85.28,11.32006912]
[1773064598246,105.45533343,85.345,85.277,11.72647524]
[1773064598247,3.09009688,85.331,85.293,3.09057607]
[1773064598448,41.01311658,85.339,85.31,11.32006912]
[1773064598661,11.71824648,85.337,85.31,11.32006912]
[1773064599941,32.37776704,85.361,85.33,11.32006912]
[1773064600143,3.09009688,85.359,85.32,14.41064519]
[1773064600343,3.09009688,85.359,85.32,11.32006912]
[1773064600546,3.09009688,85.357,85.33,11.32006912]
[1773064601053,3.09009688,85.368,85.34,11.32006912]
[1773064601251,3.09009688,85.368,85.331,3.09057607]
[1773064601451,3.09009688,85.368,85.34,11.32006912]
[1773064601962,11.71385397,85.369,85.34,11.32006912]
[1773064602152,11.71385397,85.369,85.35,11.32006912]
[1773064602352,3.09009688,85.379,85.35,11.32006912]
[1773064602662,11.71261917,85.378,85.35,11.32006912]
[1773064603040,11.71261917,85.378,85.36,11.32006912]
[1773064603546,11.71261917,85.378,85.35,11.32006912]
[1773064603949,0.2,85.4,85.37,11.32006912]
[1773064603950,11.70973898,85.399,85.37,11.32006912]
[1773064604146,11.90969219,85.4,85.38,11.32006912]
[1773064604549,11.90969219,85.4,85.355,0.28432314]
[1773064604550,11.90969219,85.4,85.37,11.32006912]
[1773064604869,3.03546723,85.379,85.34,11.32006912]
[1773064605168,3.03546723,85.369,85.331,0.28432314]
[1773064605372,3.03546723,85.369,85.331,0.14216157]
[1773064605554,3.03546723,85.369,85.331,0.28432314]
[1773064605874,3.03546723,85.369,85.33,11.32006912]
[1773064606376,11.32006912,85.37,85.33,23.03920216]
[1773064606377,3.03546723,85.367,85.33,23.03920216]
[1773064606664,3.03546723,85.367,85.3,3.69383402]
[1773064606665,3.03546723,85.349,85.32,11.32006912]
[1773064606863,14.35553635,85.36,85.33,11.32006912]
[1773064607167,3.03546723,85.359,85.32,11.32006912]
[1773064607863,11.71399119,85.368,85.341,2.95728651]
[1773064608072,11.71399119,85.368,85.34,11.32006912]
[1773064608306,11.71399119,85.368,85.305,3.69383402]
[1773064608307,3.03546723,85.365,85.33,11.32006912]
[1773064608447,3.03546723,85.359,85.32,11.32006912]
[1773064608772,11.71426563,85.366,85.332,0.28432314]
[1773064609062,3.03546723,85.365,85.33,11.32006912]
[1773064609263,3.03546723,85.359,85.321,0.28432314]
[1773064609461,3.03546723,85.359,85.33,11.32006912]
[1773064609858,11.71426563,85.366,85.341,2.95728651]
[1773064610368,3.03546723,85.374,85.34,11.32006912]
[1773064610554,14.35553635,85.37,85.332,11.71889191]
[1773064610750,3.03546723,85.369,85.332,11.71889191]
[1773064611080,3.03546723,85.369,85.34,11.32006912]
[1773064611452,3.03546723,85.369,85.33,11.32006912]
[1773064611652,3.03546723,85.369,85.331,11.71907044]
[1773064611950,3.03546723,85.369,85.332,0.28432314]
[1773064612151,3.03546723,85.369,85.34,11.32006912]
[1773064612347,3.03546723,85.369,85.331,11.71907044]
[1773064612348,11.71399119,85.368,85.331,11.71907044]
[1773064612552,40.9841352,85.399,85.36,14.27735563]
[1773064612754,3.03546723,85.398,85.37,11.32006912]
[1773064612953,40.9841352,85.399,85.334,3.69383402]
[1773064612954,3.03546723,85.389,85.35,11.32006912]
[1773064613160,40.9841352,85.399,85.34,11.32006912]
[1773064613161,3.03546723,85.379,85.34,11.32006912]
[1773064613575,3.03546723,85.379,85.35,11.32006912]
[1773064613874,3.03546723,85.379,85.33,29.29801945]
[1773064613875,3.03546723,85.369,85.33,11.32006912]
[1773064614077,3.03546723,85.359,85.32,11.32006912]
[1773064614271,3.03546723,85.349,85.31,11.32006912]
[1773064614570,3.03546723,85.347,85.31,11.32006912]
[1773064615769,11.71701075,85.346,85.31,11.32006912]
[1773064616153,3.03546723,85.345,85.31,11.32006912]
[1773064617359,3.03546723,85.345,85.295,0.28432314]
[1773064617360,11.32006912,85.32,85.28,14.27735563]
[1773064617564,3.03546723,85.319,85.28,26.00335316]
[1773064617776,3.03546723,85.319,85.28,14.27735563]
[1773064618085,3.03546723,85.319,85.26,3.69383402]
[1773064618086,11.32006912,85.31,85.271,2.95728651]
[1773064618259,11.32006912,85.31,85.26,11.72882946]
[1773064618260,3.03546723,85.33,85.3,11.32006912]
[1773064618464,3.03546723,85.342,85.31,11.32006912]
[1773064619084,3.03546723,85.351,85.311,2.95728651]
[1773064619280,11.32006912,85.34,85.301,0.28432314]
[1773064619665,11.30668172,85.34,85.301,0.28432314]
[1773064619864,11.71797185,85.339,85.301,11.72319199]
[1773064620174,3.03546723,85.319,85.282,12.01012694]
[1773064620374,3.03546723,85.319,85.29,11.30668172]
[1773064620781,11.30668172,85.33,85.283,2.95728651]
[1773064621091,3.03546723,85.319,85.283,0.28432314]
[1773064621385,3.03546723,85.329,85.291,2.95728651]
[1773064621769,3.03546723,85.329,85.292,0.28432314]
[1773064621977,11.71948246,85.328,85.293,11.72429155]
[1773064622164,11.71948246,85.328,85.294,2.95728651]
[1773064622370,11.71810916,85.338,85.301,2.95728651]
[1773064622571,11.30668172,85.33,85.301,2.95728651]
[1773064622767,3.03546723,85.329,85.29,11.30668172]
[1773064622962,3.03546723,85.337,85.3,11.30668172]
[1773064623184,2.8797511,85.329,85.292,0.14216157]
[1773064623365,11.30668172,85.33,85.3,11.30668172]
[1773064623568,2.8797511,85.337,85.301,3.18080752]
[1773064623784,3.69383402,85.366,85.302,3.18080752]
[1773064623785,2.8797511,85.348,85.302,3.18080752]
[1773064624084,11.71572621,85.356,85.321,3.18080752]
[1773064624285,2.8797511,85.368,85.313,0.28432314]
[1773064624286,2.8797511,85.368,85.331,3.18080752]
[1773064624480,11.30668172,85.36,85.313,3.18080752]
[1773064624682,2.8797511,85.329,85.29,11.30668172]
[1773064624880,2.8797511,85.329,85.29,23.03135772]
[1773064625067,2.8797511,85.329,85.291,0.28432314]
[1773064625263,11.30668172,85.36,85.321,3.18080752]
[1773064625484,2.8797511,85.365,85.33,11.30668172]
[1773064625983,2.8797511,85.359,85.32,11.30668172]
[1773064626286,41.00089029,85.364,85.292,0.28432314]
[1773064626287,2.8797511,85.329,85.292,0.28432314]
[1773064626592,2.8797511,85.319,85.287,11.72509425]
[1773064626780,2.8797511,85.319,85.28,11.30668172]
[1773064626983,2.8797511,85.309,85.271,11.72731643]
[1773064627190,2.8797511,85.299,85.271,11.72731643]
[1773064627388,2.8797511,85.289,85.25,11.30668172]
[1773064627684,2.8797511,85.309,85.27,11.30668172]
[1773064627869,2.8797511,85.309,85.253,11.72974576]
[1773064627870,2.8797511,85.289,85.253,11.72974576]
[1773064628066,2.8797511,85.302,85.27,11.30668172]
[1773064628274,11.30668172,85.31,85.271,3.32296909]
[1773064628584,2.8797511,85.315,85.28,11.30668172]
[1773064628783,11.30668172,85.31,85.28,11.30668172]
[1773064628978,2.8797511,85.309,85.28,11.30668172]
[1773064629766,2.8797511,85.299,85.26,11.30668172]
[1773064629971,11.30668172,85.29,85.26,11.30668172]
[1773064630390,11.30668172,85.29,85.261,11.72869189]
[1773064630590,11.72436038,85.293,85.261,11.72869189]
[1773064630820,14.18643282,85.29,85.252,11.72993008]
[1773064630971,2.8797511,85.279,85.241,0.14216157]
[1773064631487,2.8797511,85.279,85.25,11.30668172]
[1773064631679,14.18643282,85.29,85.25,11.30668172]
[1773064631886,58.60505918,85.317,85.26,11.30668172]
[1773064631887,2.8797511,85.289,85.26,11.30668172]
[1773064632282,11.72382134,85.297,85.26,11.30668172]
[1773064632594,2.8797511,85.319,85.29,11.30668172]
[1773064632775,11.71831473,85.337,85.3,11.30668172]
[1773064633093,2.8797511,85.341,85.32,11.30668172]
[1773064633285,11.71783454,85.34,85.32,11.30668172]
[1773064633603,2.8797511,85.367,85.331,3.18080752]
[1773064633791,2.8797511,85.379,85.36,11.30668172]
[1773064633981,40.78089264,85.4,85.32,11.30668172]
[1773064633982,2.8797511,85.389,85.35,11.30668172]
[1773064634589,2.8797511,85.387,85.351,11.71632435]
[1773064635581,14.18643282,85.38,85.351,11.71632435]
[1773064635786,0.2,85.4,85.37,11.30668172]
[1773064635787,11.7099885,85.398,85.37,11.30668172]
[1773064636077,0.2,85.4,85.37,11.30668172]
[1773064636078,0.2,85.4,85.37,3.18080752]
[1773064636295,0.2,85.4,85.38,11.30668172]
[1773064636488,11.70973898,85.399,85.369,11.71373409]
[1773064636678,0.2,85.4,85.37,11.30668172]
[1773064636880,11.70973898,85.399,85.37,11.30668172]
[1773064637082,2.8797511,85.389,85.35,11.30668172]
[1773064637590,2.8797511,85.379,85.341,0.28432314]
[1773064637777,2.8797511,85.379,85.35,11.30668172]
[1773064637981,2.8797511,85.379,85.341,0.28432314]
[1773064638392,2.8797511,85.379,85.351,0.28432314]
[1773064638600,0.2,85.4,85.371,3.18080752]
[1773064638909,0.2,85.4,85.38,11.30668172]
[1773064639587,0.2,85.4,85.37,11.30668172]
[1773064639782,0.2,85.4,85.362,41.00185093]
[1773064639783,0.2,85.4,85.38,11.30668172]
[1773064640099,2.8797511,85.398,85.363,0.28432314]
[1773064640300,2.8797511,85.398,85.37,11.30668172]
[1773064640684,2.8797511,85.396,85.36,11.30668172]
[1773064641001,2.8797511,85.389,85.36,11.71505448]
[1773064641203,11.71001323,85.397,85.36,23.0217362]
[1773064641407,2.8797511,85.389,85.345,11.71714804]
[1773064641608,2.8797511,85.379,85.34,11.30668172]
[1773064641810,2.8797511,85.359,85.32,11.30668172]
[1773064642097,11.30668172,85.35,85.321,11.72044397]
[1773064642305,11.30668172,85.38,85.311,11.72181781]
[1773064642306,14.18643282,85.34,85.311,11.72181781]
[1773064642613,2.8797511,85.34,85.311,11.72181781]
[1773064642800,11.71632435,85.351,85.32,11.30668172]
[1773064643117,11.71522627,85.359,85.32,11.30668172]
[1773064643319,11.71522627,85.359,85.312,3.18080752]
[1773064643511,11.30668172,85.37,85.34,11.30668172]
[1773064643812,11.30668172,85.37,85.331,3.18080752]
[1773064643988,40.99717101,85.372,85.311,11.72181781]
[1773064643989,2.8797511,85.349,85.311,11.72181781]
[1773064644497,14.18643282,85.36,85.32,11.30668172]
[1773064644812,2.8797511,85.358,85.321,11.72044397]
[1773064645413,2.8797511,85.349,85.313,11.72149608]
[1773064646107,11.71522627,85.359,85.321,3.18080752]
[1773064646415,11.71522627,85.359,85.33,11.30668172]
[1773064646608,2.8797511,85.358,85.32,11.30668172]
[1773064646907,2.8797511,85.349,85.32,11.30668172]
[1773064647088,2.8797511,85.349,85.316,11.72103344]
[1773064647491,2.8797511,85.339,85.29,3.32296909]
[1773064647687,2.8797511,85.339,85.3,11.30668172]
[1773064647913,2.8797511,85.329,85.29,11.30668172]
[1773064648298,2.8797511,85.341,85.31,11.30668172]
[1773064648496,11.30668172,85.35,85.32,11.30668172]
[1773064649105,2.8797511,85.339,85.3,11.30668172]
[1773064649306,2.8797511,85.341,85.31,11.30668172]
[1773064649487,11.30668172,85.34,85.301,0.14216157]
[1773064649692,2.8797511,85.329,85.291,3.18080752]
[1773064650092,2.8797511,85.329,85.29,11.30668172]
[1773064650713,2.8797511,85.319,85.283,0.14216157]
[1773064651310,2.8797511,85.327,85.29,11.30668172]
[1773064651509,11.30668172,85.31,85.281,11.72594129]
[1773064651700,2.8797511,85.319,85.281,11.72594129]
[1773064652403,41.01818862,85.328,85.281,11.72594129]
[1773064652404,11.71948246,85.328,85.291,3.18080752]
[1773064652611,2.8797511,85.327,85.291,3.18080752]
[1773064653006,3.052267,85.309,85.281,11.72594129]
[1773064653392,11.72138991,85.315,85.281,11.72594129]
[1773064653596,3.052267,85.314,85.281,11.72594129]
[1773064654404,11.72138991,85.315,85.276,11.72649568]
[1773064654405,3.052267,85.309,85.276,11.72649568]
[1773064654594,3.052267,85.299,85.252,11.72993008]
[1773064654921,11.30668172,85.3,85.27,11.30668172]
[1773064655136,11.30668172,85.31,85.271,3.01125655]
[1773064655306,11.30668172,85.32,85.282,41.0403133]
[1773064655624,3.052267,85.324,85.284,0.28432314]
[1773064655819,3.052267,85.324,85.29,11.30668172]
[1773064656602,3.052267,85.331,85.3,11.30668172]
[1773064656898,11.71844903,85.336,85.301,3.01125655]
[1773064657096,3.052267,85.335,85.3,11.30668172]
[1773064657296,14.77078812,85.335,85.311,11.72181781]
[1773064657521,3.052267,85.334,85.3,23.03001114]
[1773064657815,3.052267,85.334,85.31,11.30668172]
[1773064658215,3.052267,85.346,85.31,11.30668172]
[1773064658518,3.052267,85.339,85.3,23.03001114]
[1773064658895,3.052267,85.319,85.271,3.01125655]
[1773064659216,3.052267,85.309,85.272,11.7271789]
[1773064659425,3.052267,85.318,85.28,11.30668172]
[1773064659603,3.052267,85.318,85.28,14.31793827]
[1773064660125,11.30668172,85.32,85.273,0.14216157]
[1773064660126,3.052267,85.329,85.3,11.30668172]
[1773064660724,3.052267,85.329,85.291,3.01125655]
[1773064660899,3.052267,85.329,85.29,11.30668172]
[1773064661101,3.052267,85.329,85.3,11.30668172]
[1773064661714,3.052267,85.319,85.28,11.30668172]
[1773064661897,3.052267,85.309,85.274,0.28432314]
[1773064662104,3.052267,85.309,85.28,11.30668172]
[1773064663726,11.30668172,85.29,85.251,3.01125655]
[1773064663933,3.052267,85.289,85.251,3.01125655]
[1773064664110,3.052267,85.302,85.27,11.30668172]
[1773064664505,3.052267,85.316,85.28,11.30668172]
[1773064664706,3.052267,85.315,85.28,11.30668172]
[1773064665510,3.052267,85.309,85.271,0.28432314]
[1773064665719,3.052267,85.307,85.271,11.72731643]
[1773064667324,3.052267,85.307,85.271,41.04560752]
[1773064667524,2.95946859,85.356,85.291,3.04956227]
[1773064667823,14.26615031,85.33,85.3,11.30668172]
[1773064668005,2.95946859,85.329,85.3,11.30668172]
[1773064668609,2.95946859,85.329,85.291,3.04956227]
[1773064668610,11.30668172,85.36,85.321,3.04956227]
[1773064668843,11.30668172,85.39,85.35,11.30668172]
[1773064669134,11.30668172,85.38,85.341,3.04956227]
[1773064669426,11.30668172,85.38,85.34,11.30668172]
[1773064669807,40.99368697,85.379,85.341,11.71769723]
[1773064670333,11.71248199,85.379,85.35,11.30668172]
[1773064670711,11.71248199,85.379,85.342,3.04956227]
[1773064670923,2.95946859,85.378,85.342,3.04956227]
[1773064671122,43.54379308,85.39,85.351,3.04956227]
[1773064671507,2.95946859,85.389,85.351,3.04956227]
[1773064671704,11.30668172,85.38,85.351,3.04956227]
[1773064671927,11.30668172,85.38,85.326,0.28432314]
[1773064671928,2.95946859,85.379,85.332,14.76849537]
[1773064672226,2.95946859,85.379,85.34,11.30668172]
[1773064672427,2.95946859,85.379,85.35,11.30668172]
[1773064672924,11.30668172,85.37,85.332,11.7189331]
[1773064673226,2.95946859,85.369,85.34,11.30668172]
[1773064673406,2.95946859,85.379,85.341,3.04956227]
[1773064673922,2.95946859,85.377,85.342,11.71755993]
[1773064674304,11.71261917,85.378,85.342,11.71755993]
[1773064674524,2.95946859,85.387,85.351,3.04956227]
[1773064674827,46.82615398,85.423,85.342,41.01145976]
[1773064674828,11.71055696,85.394,85.37,11.30668172]
[1773064675027,2.95946859,85.419,85.38,11.30668172]
[1773064675223,2.95946859,85.419,85.38,14.35624399]
[1773064675528,11.70973898,85.399,85.37,11.30668172]
[1773064676224,11.70973898,85.399,85.371,14.76314182]
[1773064676407,2.95946859,85.42,85.381,3.04956227]
[1773064676608,11.70844771,85.409,85.381,3.04956227]
[1773064677030,11.7082337,85.41,85.381,3.04956227]
[1773064677409,11.7075764,85.415,85.381,3.04956227]
[1773064677610,11.70813019,85.411,85.381,3.04956227]
[1773064678404,2.95946859,85.41,85.38,11.30668172]
[1773064678626,11.90965795,85.4,85.38,11.30668172]
[1773064678831,11.90965795,85.4,85.35,11.30668172]
[1773064678832,2.95946859,85.389,85.35,11.30668172]
[1773064679026,2.95946859,85.389,85.351,3.04956227]
[1773064679223,0.2,85.4,85.371,3.04956227]
[1773064680519,2.95946859,85.399,85.36,11.30668172]
[1773064680722,2.95946859,85.379,85.34,11.30668172]
[1773064681042,2.95946859,85.389,85.351,3.04956227]
[1773064681332,2.95946859,85.369,85.334,11.71856015]
[1773064681634,2.95946859,85.379,85.34,14.34659581]
[1773064682330,2.95946859,85.369,85.335,3.04956227]
[1773064682537,11.71261917,85.378,85.342,3.04956227]
[1773064682732,2.95946859,85.377,85.34,11.29703354]
[1773064683032,2.95946859,85.377,85.341,3.04956227]
[1773064683359,3.02865465,85.359,85.321,3.36703612]
[1773064683520,11.71261917,85.378,85.35,11.29703354]
[1773064683721,3.02865465,85.383,85.35,11.29703354]
[1773064683921,11.70861754,85.408,85.371,3.08271298]
[1773064684126,3.02865465,85.42,85.39,11.29703354]
[1773064684427,3.02865465,85.431,85.391,3.08271298]
[1773064684633,0.2,85.48,85.42,11.29703354]
[1773064684634,3.02865465,85.444,85.42,11.29703354]
[1773064684833,3.02865465,85.456,85.42,11.29703354]
[1773064685135,3.02865465,85.456,85.394,40.98648615]
[1773064685136,0.2,85.46,85.441,3.08271298]
[1773064685325,14.73017233,85.459,85.43,11.29703354]
[1773064685515,0.2,85.46,85.44,11.29703354]
[1773064685916,0.2,85.47,85.45,14.37974652]
[1773064686135,11.90005445,85.47,85.44,11.29703354]
[1773064686631,3.02865465,85.467,85.431,11.70535285]
[1773064686825,3.02865465,85.467,85.44,11.29703354]
[1773064687131,3.02865465,85.449,85.41,11.29703354]
[1773064687330,3.02865465,85.449,85.41,14.37974652]
[1773064687535,3.02865465,85.439,85.405,11.70891633]
[1773064687727,3.02865465,85.439,85.4,11.29703354]
[1773064687728,3.02865465,85.439,85.4,23.00656106]
[1773064687923,11.29703354,85.42,85.386,11.71152179]
[1773064688120,3.02865465,85.42,85.39,11.29703354]
[1773064688722,3.02865465,85.428,85.391,11.71083603]
[1773064689031,3.02865465,85.428,85.392,3.08271298]
[1773064689616,11.29703354,85.42,85.385,11.71153841]
[1773064689826,3.02865465,85.428,85.39,11.29703354]
[1773064690036,3.02865465,85.428,85.391,3.08271298]
[1773064690234,3.02865465,85.428,85.381,3.08271298]
[1773064690235,11.29703354,85.42,85.381,3.08271298]
[1773064690535,3.02865465,85.419,85.381,3.08271298]
[1773064690854,3.02865465,85.417,85.38,11.29703354]
[1773064691018,11.29703354,85.41,85.373,3.36703612]
[1773064691218,3.02865465,85.417,85.38,11.29703354]
[1773064691636,3.02865465,85.399,85.36,11.29703354]
[1773064691938,11.29703354,85.38,85.343,3.08271298]
[1773064692236,3.02865465,85.379,85.343,3.08271298]
[1773064692435,14.32568819,85.39,85.351,3.08271298]
[1773064692636,11.71111033,85.389,85.353,3.08271298]
[1773064692937,3.02865465,85.401,85.361,3.08271298]
[1773064692938,23.00663541,85.4,85.361,3.08271298]
[1773064693137,11.7090814,85.404,85.371,3.08271298]
[1773064693349,3.02865465,85.415,85.39,11.29703354]
[1773064693643,3.02865465,85.426,85.39,11.29703354]
[1773064693833,11.29703354,85.42,85.381,3.08271298]
[1773064694025,11.29703354,85.41,85.381,3.08271298]
[1773064694222,3.02865465,85.419,85.381,3.08271298]
[1773064694422,11.29703354,85.42,85.381,3.08271298]
[1773064694729,11.70836797,85.409,85.381,3.08271298]
[1773064695129,3.02865465,85.408,85.375,11.71290169]
[1773064695542,11.29703354,85.39,85.36,3.08271298]
[1773064695724,3.02865465,85.389,85.352,0.28432314]
[1773064696040,3.02865465,85.389,85.349,3.08271298]
[1773064696041,11.29703354,85.38,85.349,3.08271298]
[1773064696220,11.29703354,85.36,85.323,3.08271298]
[1773064696423,11.29703354,85.37,85.33,14.37974652]
[1773064696631,11.71522627,85.359,85.331,11.71907044]
[1773064697034,11.29703354,85.37,85.341,3.08271298]
[1773064697236,11.29703354,85.39,85.354,0.28432314]
[1773064697434,11.29703354,85.39,85.354,3.08271298]
[1773064697935,11.29703354,85.38,85.341,3.08271298]
[1773064698433,11.29703354,85.39,85.351,3.08271298]
[1773064698741,23.00674764,85.4,85.361,3.08271298]
[1773064698921,11.70906899,85.404,85.38,11.29703354]
[1773064699125,11.29703354,85.43,85.391,3.08271298]
[1773064699422,3.02865465,85.429,85.391,0.28432314]
[1773064699632,11.29703354,85.42,85.39,11.29703354]
[1773064699836,14.32568819,85.42,85.38,11.29703354]
[1773064700240,3.02865465,85.419,85.381,3.08271298]
[1773064700829,14.32568819,85.41,85.379,11.71244314]
[1773064701240,3.02865465,85.409,85.371,11.71357955]
[1773064701749,11.29703354,85.41,85.359,3.08271298]
[1773064701750,3.02865465,85.399,85.361,0.28432314]
[1773064702246,99.51064176,85.418,85.35,11.29703354]
[1773064702247,3.02865465,85.389,85.35,11.29703354]
[1773064702428,11.29703354,85.39,85.361,3.08271298]
[1773064703048,11.7099526,85.398,85.362,41.00185093]
[1773064703244,11.7099526,85.398,85.362,11.71481455]
[1773064703737,3.02865465,85.397,85.362,11.71481455]
[1773064703944,11.7099526,85.398,85.354,11.71591255]
[1773064703945,3.02865465,85.389,85.354,11.71591255]
[1773064704932,46.82537009,85.424,85.361,3.08271298]
[1773064704933,11.29703354,85.4,85.361,3.08271298]
[1773064705128,3.02865465,85.403,85.362,3.36703612]
[1773064705334,11.70836797,85.409,85.371,3.08271298]
[1773064705646,3.02865465,85.399,85.362,0.28432314]
[1773064705865,3.02865465,85.399,85.361,0.28432314]
[1773064706043,3.02865465,85.389,85.354,11.71591255]
[1773064706432,3.02865465,85.389,85.36,11.29703354]
[1773064706633,3.02865465,85.389,85.354,14.79862553]
[1773064707530,11.29703354,85.4,85.361,3.08271298]
[1773064707729,14.32568819,85.4,85.361,3.08271298]
[1773064708142,11.70984102,85.399,85.361,3.08271298]
[1773064709046,14.73849567,85.399,85.361,3.08271298]
[1773064709246,11.70984102,85.399,85.361,3.08271298]
[1773064709430,3.02865465,85.389,85.354,11.71591255]
[1773064709630,3.02865465,85.379,85.348,11.71664295]
[1773064709836,3.02865465,85.379,85.342,11.71742891]
[1773064710035,11.29703354,85.37,85.339,3.08271298]
[1773064710230,11.29703354,85.38,85.341,3.08271298]
[1773064710454,3.02865465,85.399,85.36,14.37974652]
[1773064710634,29.26847163,85.417,85.351,3.36703612]
[1773064710635,3.02865465,85.389,85.351,3.36703612]
[1773064710838,3.02865465,85.389,85.351,3.08271298]
[1773064711147,3.02865465,85.379,85.34,14.37974652]
[1773064711351,3.02865465,85.379,85.341,3.08271298]
[1773064711652,11.71111033,85.389,85.353,3.08271298]
[1773064712550,11.29703354,85.38,85.353,3.08271298]
[1773064713456,11.29703354,85.38,85.352,11.71618708]
[1773064713954,11.29703354,85.38,85.343,3.28631756]
[1773064713955,2.97303,85.378,85.344,11.71728533]
[1773064714342,2.97303,85.378,85.344,15.00360289]
[1773064714657,11.29703354,85.39,85.351,3.28631756]